bitfinex/quotes_ETHUSD_20251017
["timestamp","ask_amount","ask_price","bid_price","bid_amount"]
[1760692400616,0.6336,3740.3,3739.6,0.228]
[1760692401141,0.002,3741.1,3740.2,0.227]
[1760692401450,0.002,3741.1,3740.2,2.90064679]
[1760692401649,0.002,3741.1,3740.4,2.67348498]
[1760692401946,2.67501766,3741.1,3740.4,2.67348498]
[1760692402252,2.67321433,3740.9,3740.3,0.73976468]
[1760692402412,2.67504381,3741.1,3739.3,2.833]
[1760692402413,0.6336,3740.7,3739.8,0.4497]
[1760692402613,0.6336,3740.7,3739.8,3.12358698]
[1760692402837,2.67360202,3740.3,3739.8,1.05226471]
[1760692403017,0.6336,3740.7,3739.6,0.228]
[1760692403215,3.30690931,3740.7,3740.0,2.67377549]
[1760692403451,3.30690931,3740.7,3740.1,0.2307]
[1760692403648,3.30682966,3740.8,3740.1,0.2307]
[1760692403839,0.6336,3740.9,3739.6,0.228]
[1760692404023,2.6735682,3740.4,3739.6,0.228]
[1760692404228,0.04660198,3740.7,3739.7,0.46302235]
[1760692404426,0.6336,3740.6,3739.8,0.4497]
[1760692404629,2.6734262,3740.6,3739.8,3.12362797]
[1760692405021,2.6734262,3740.6,3739.9,2.6738592]
[1760692405435,2.6734262,3740.6,3739.9,3.27642314]
[1760692405641,0.002,3741.1,3739.9,0.60256394]
[1760692405918,0.002,3741.1,3740.5,0.2307]
[1760692406154,0.002,3741.1,3740.8,2.67321792]
[1760692406513,0.002,3741.1,3740.9,3.1228413]
[1760692406717,0.002,3741.1,3740.5,0.2307]
[1760692407247,0.002,3741.1,3741.0,2.67308206]
[1760692407462,0.002,3741.1,3740.6,0.4497]
[1760692407618,2.67506668,3741.1,3740.5,0.2307]
[1760692407818,2.67308996,3741.0,3740.5,0.2307]
[1760692408014,2.67331517,3740.7,3740.2,0.2307]
[1760692408248,2.67505513,3741.1,3740.3,2.67358233]
[1760692408420,0.002,3741.1,3740.2,0.5661173]
[1760692408620,0.002,3741.1,3740.2,0.2307]
[1760692408847,0.002,3741.1,3740.5,2.67339547]
[1760692409227,0.002,3741.1,3740.3,0.4497]
[1760692409433,0.002,3741.1,3740.4,2.67351085]
[1760692409628,0.002,3741.1,3740.3,0.4497]
[1760692409833,0.1356,3741.1,3740.7,2.67328546]
[1760692410031,0.1356,3741.1,3740.7,0.54803193]
[1760692410253,0.002,3741.1,3741.0,2.67308206]
[1760692410430,0.002,3741.1,3741.0,3.12278206]
[1760692410825,0.002,3741.1,3741.0,0.4497]
[1760692411246,0.002,3741.1,3741.0,3.12278206]
[1760692412444,0.002,3741.1,3741.0,4.87751288]
[1760692412870,0.002,3741.1,3741.0,5.63258076]
[1760692413169,0.002,3741.1,3741.0,20.76780894]
[1760692413346,0.002,3741.1,3741.0,21.40140894]
[1760692413538,0.002,3741.1,3741.0,21.54298768]
[1760692413965,0.002,3741.5,3741.0,21.54298768]
[1760692413966,1e-08,3741.5,3741.0,21.54298768]
[1760692414166,1e-08,3741.5,3741.4,48.2751367]
[1760692414373,1e-08,3741.5,3741.4,51.1051367]
[1760692414540,0.002,3741.9,3741.8,3.30611055]
[1760692414866,0.17,3743.9,3741.6,0.6336]
[1760692415038,2.6714196,3743.4,3741.7,0.6804]
[1760692415438,2.6714196,3743.4,3742.7,2.67185944]
[1760692415654,2.67131261,3743.5,3742.7,2.67185944]
[1760692416071,0.17,3743.8,3742.5,2.67196532]
[1760692416236,1.728,3743.9,3742.1,2.83]
[1760692416237,1.898,3743.9,3742.1,2.83]
[1760692416437,3.30472994,3743.8,3742.2,2.1777]
[1760692416656,0.1879,3744.0,3743.0,2.67165124]
[1760692416972,0.04656698,3743.8,3743.2,2.67150823]
[1760692417271,0.04656698,3743.8,3743.2,2.67150204]
[1760692417641,0.04656698,3743.8,3743.1,2.90225854]
[1760692417833,0.04656698,3743.8,3743.2,0.29022585]
[1760692418039,0.04656698,3743.8,3742.8,0.4497]
[1760692418369,0.04656698,3743.8,3743.3,2.6714315]
[1760692418576,2.8406607,3744.4,3743.3,3.12109353]
[1760692418781,0.68015999,3744.3,3742.8,1.728]
[1760692418948,0.1875,3743.4,3741.7,1.9587]
[1760692419159,2.67143963,3743.3,3742.6,0.2307]
[1760692419380,2.67144382,3743.3,3742.6,0.2307]
[1760692419682,2.67152785,3743.2,3742.6,0.2307]
[1760692419988,2.67155629,3743.2,3742.4,0.2307]
[1760692420190,2.67171323,3743.0,3742.5,0.50806184]
[1760692420390,2.67174605,3742.9,3742.2,2.67220867]
[1760692420688,0.1598,3743.0,3742.1,0.2307]
[1760692420861,2.67177458,3742.9,3742.1,2.90297139]
[1760692421064,2.67187812,3742.7,3742.1,0.2307]
[1760692421262,2.67178762,3742.9,3742.1,2.90298508]
[1760692421458,2.6718587,3742.8,3742.2,0.84044242]
[1760692422384,0.1328,3742.7,3742.3,2.67212025]
[1760692422696,0.04657065,3743.3,3742.5,2.67196224]
[1760692422855,0.04657065,3743.3,3742.4,0.4497]
[1760692422856,0.1328,3743.1,3742.7,2.67185991]
[1760692423054,0.1328,3743.1,3742.5,1.728]
[1760692423361,2.67108293,3743.8,3743.0,2.67159611]
[1760692423562,2.67108293,3743.8,3743.1,2.67158178]
[1760692423890,0.04656729,3743.9,3742.6,0.45336235]
[1760692423891,2.67152099,3743.2,3742.6,0.45336235]
[1760692424048,0.1601,3743.7,3742.6,0.45336235]
[1760692424049,2.67165186,3743.1,3742.6,0.45336235]
[1760692424255,2.67148268,3743.3,3742.6,3.1252959]
[1760692424483,2.67146432,3743.3,3742.6,0.45336235]
[1760692424695,2.8313077,3743.7,3742.6,0.45336235]
[1760692424851,0.1608,3744.4,3742.8,31.94251243]
[1760692425051,2.67095534,3744.0,3743.3,2.67140981]
[1760692425371,2.9035358,3743.9,3743.1,2.67153564]
[1760692425695,2.67111459,3743.8,3742.9,2.828]
[1760692425878,2.67111459,3743.8,3742.9,5.49972116]
[1760692426047,2.90353643,3743.9,3743.1,2.67156128]
[1760692426481,2.67123826,3743.6,3742.9,2.828]
[1760692426663,2.67123826,3743.6,3742.9,0.8937561]
[1760692426862,2.67123826,3743.6,3742.9,3.56545172]
[1760692427057,2.90351942,3743.9,3742.9,0.8937561]
[1760692427058,0.2325,3743.9,3742.9,0.8937561]
[1760692427263,2.67122323,3743.7,3742.6,3.73006235]
[1760692427583,2.90352473,3743.9,3743.1,2.6715277]
[1760692427884,2.67091831,3744.1,3743.1,2.6715277]
[1760692427885,2.67073759,3744.3,3743.6,2.6712039]
[1760692428063,2.67073759,3744.3,3743.5,2.6712862]
[1760692428262,0.43430828,3744.5,3743.6,0.02671225]
[1760692428462,0.43430828,3744.5,3744.4,2.67065484]
[1760692428789,0.43430828,3744.5,3744.4,0.2307]
[1760692429286,0.43430828,3744.5,3744.4,2.90135484]
[1760692430347,0.43430828,3744.5,3744.4,3.35105484]
[1760692430552,0.43430828,3744.5,3744.4,4.23594007]
[1760692430748,0.43430828,3744.5,3744.4,3.78624007]
[1760692431180,0.43430828,3744.5,3744.4,1.11558523]
[1760692431386,0.002,3744.4,3744.1,2.827]
[1760692431555,0.002,3744.4,3744.1,5.49786389]
[1760692431755,0.002,3744.4,3744.1,2.827]
[1760692431957,0.002,3744.4,3744.3,2.67072617]
[1760692432155,0.002,3744.4,3744.2,0.4385]
[1760692432354,0.002,3744.4,3744.3,3.10922617]
[1760692432555,0.002,3744.4,3744.2,0.61542416]
[1760692432760,0.002,3744.4,3744.2,2.67074677]
[1760692432961,0.002,3744.4,3744.3,3.10922617]
[1760692433184,0.002,3744.4,3744.3,0.4385]
[1760692433356,0.002,3744.4,3744.3,2.80352617]
[1760692433758,0.002,3744.4,3743.3,0.4385]
[1760692433994,0.002,3744.4,3744.0,2.6709312]
[1760692434153,2.53175874,3744.7,3744.0,2.6709312]
[1760692434357,0.1328,3744.5,3743.9,0.1328]
[1760692434986,0.1328,3744.5,3743.9,2.80376099]
[1760692435183,0.1328,3744.5,3743.9,0.1328]
[1760692435371,2.6708891,3744.1,3743.0,0.2307]
[1760692435571,0.1328,3744.2,3743.6,0.1328]
[1760692435796,0.1328,3743.8,3743.3,2.67139788]
[1760692436157,0.1328,3743.8,3743.6,2.67119367]
[1760692436495,2.67065833,3744.4,3743.7,0.1328]
[1760692436496,0.1328,3744.4,3743.7,0.1328]
[1760692436698,2.80346407,3744.4,3743.7,2.80389111]
[1760692436895,2.67073038,3744.3,3743.7,0.1328]
[1760692437080,0.1328,3744.4,3743.7,0.1328]
[1760692437081,2.67080703,3744.2,3743.7,0.1328]
[1760692437398,0.2353,3744.8,3743.0,0.2307]
[1760692437399,0.2321,3743.8,3743.4,0.1328]
[1760692437563,0.1328,3743.8,3743.2,0.3506]
[1760692437757,0.1328,3743.8,3743.2,0.47886722]
[1760692438092,0.1328,3743.8,3743.2,0.1328]
[1760692438282,2.80395164,3743.8,3743.2,0.1328]
[1760692438484,0.1328,3743.8,3743.2,0.3506]
[1760692438662,0.1328,3744.1,3743.6,2.67117076]
[1760692438992,0.1328,3744.1,3743.5,0.1328]
[1760692438993,0.2313,3743.7,3743.5,0.1328]
[1760692439170,0.3641,3743.7,3743.2,2.671511]
[1760692439375,0.1328,3744.1,3743.5,0.1328]
[1760692439690,0.1328,3744.1,3743.6,2.67122258]
[1760692439868,0.1328,3744.1,3743.5,2.80403998]
[1760692440068,0.1328,3744.1,3743.5,0.1328]
[1760692440468,0.1328,3744.1,3743.9,2.67100749]
[1760692440781,0.1328,3744.1,3743.5,2.80408856]
[1760692440974,0.1328,3744.1,3743.5,2.80407157]
[1760692441172,2.67094469,3744.0,3743.5,0.1328]
[1760692441357,0.1328,3744.1,3743.5,2.80409101]
[1760692441697,0.1328,3744.1,3743.8,2.67103017]
[1760692442061,0.1328,3744.1,3743.5,0.4349891]
[1760692442301,2.8037282,3744.1,3743.5,0.1328]
[1760692442467,0.1328,3744.1,3743.6,2.6711661]
[1760692443300,0.1328,3744.1,3742.9,2.67169168]
[1760692443301,0.2242,3743.7,3742.4,0.4362]
[1760692443501,0.2242,3743.7,3742.8,2.67174945]
[1760692443664,2.67160123,3743.1,3742.2,2.67222489]
[1760692443864,0.2242,3743.7,3742.1,3.0557]
[1760692443865,0.1535,3743.3,3742.1,3.0557]
[1760692444183,2.67137354,3743.4,3742.7,2.67182296]
[1760692444507,2.67122555,3743.6,3742.7,0.2671823]
[1760692444717,1.728,3744.0,3742.7,8.104628]
[1760692444864,0.1542,3744.4,3743.5,2.67129659]
[1760692445061,0.2353,3744.8,3743.6,0.2199]
[1760692445062,2.1175,3744.8,3743.6,0.2199]
[1760692445411,2.67092526,3744.1,3743.6,0.2199]
[1760692445566,2.67094559,3744.0,3743.3,2.89127462]
[1760692445768,0.2228,3743.9,3742.6,2.825]
[1760692445970,0.7885,3743.8,3742.3,0.4362]
[1760692446165,2.67134927,3743.5,3742.1,3.0557]
[1760692446471,2.67178426,3742.9,3742.2,2.67221208]
[1760692446672,2.67179651,3742.8,3742.1,0.2307]
[1760692446992,2.67179651,3742.8,3742.1,3.19335186]
[1760692447200,2.67181844,3742.8,3742.1,3.19340413]
[1760692447599,2.67187221,3742.7,3742.1,3.19340413]
[1760692448094,2.6718229,3742.8,3742.1,0.52110945]
[1760692448301,2.67187653,3742.7,3742.1,0.2307]
[1760692448469,0.1553,3743.1,3741.9,0.001]
[1760692448470,2.67198773,3742.6,3741.9,0.001]
[1760692448670,2.67198773,3742.6,3741.9,2.67343261]
[1760692448866,0.1556,3742.6,3741.9,0.001]
[1760692449144,0.1556,3742.5,3741.9,0.001]
[1760692449307,2.67236771,3742.0,3741.9,0.001]
[1760692449840,2.67232323,3742.1,3741.9,0.001]
[1760692450044,2.67215888,3742.3,3741.9,0.001]
[1760692450210,2.67236771,3742.0,3741.9,0.001]
[1760692450745,0.1556,3742.6,3742.1,0.001]
[1760692451038,2.67222489,3742.2,3742.1,0.001]
[1760692451431,4.55582489,3742.2,3742.1,0.001]
[1760692451603,5.18942489,3742.2,3742.1,0.001]
[1760692451942,5.2360074,3742.2,3742.1,0.001]
[1760692455247,5.0804074,3742.2,3742.1,0.001]
[1760692455456,2.67222489,3742.2,3742.1,0.001]
[1760692455813,2.82782489,3742.2,3742.1,0.001]
[1760692456435,2.67222489,3742.2,3742.1,0.001]
[1760692456663,3.46142489,3742.2,3742.1,0.001]
[1760692457358,3.30582489,3742.2,3742.1,0.001]
[1760692458255,3.46142489,3742.2,3742.1,0.001]
[1760692458451,3.50801043,3742.2,3742.1,0.001]
[1760692461872,5.23601043,3742.2,3742.1,0.001]
[1760692462441,5.03453916,3741.2,3741.1,0.001]
[1760692462878,5.19623916,3741.2,3741.1,0.001]
[1760692463170,5.24283506,3741.2,3741.1,0.001]
[1760692464547,5.19623916,3741.2,3741.1,0.001]
[1760692464757,8.25306316,3741.2,3741.1,0.001]
[1760692464965,5.19623916,3741.2,3741.1,0.001]
[1760692465167,7.28141716,3741.2,3741.1,0.001]
[1760692465373,5.19623916,3741.2,3741.1,0.001]
[1760692465677,11.66623916,3741.2,3741.1,0.001]
[1760692467179,11.71284689,3741.2,3741.1,0.001]
[1760692467479,14.89188489,3741.2,3741.1,0.001]
[1760692467689,41.36930754,3741.2,3741.1,0.001]
[1760692468278,41.20760754,3741.2,3741.1,0.001]
[1760692468478,11.71284689,3741.2,3741.1,0.001]
[1760692469010,3.30725381,3740.2,3740.1,0.001]
[1760692469187,5.03525381,3740.2,3740.1,0.001]
[1760692469383,5.20925381,3740.2,3740.1,0.001]
[1760692469579,5.03525381,3740.2,3740.1,0.001]
[1760692469792,5.08186574,3740.2,3740.1,0.001]
[1760692469993,5.08106574,3740.2,3740.1,0.001]
[1760692470216,5.08106574,3740.2,3740.1,0.6912]
[1760692470415,5.08106574,3740.2,3740.1,0.2223]
[1760692471111,5.08106574,3740.2,3740.1,0.001]
[1760692471821,4.44826574,3740.2,3740.1,0.001]
[1760692471986,0.04661193,3740.2,3740.1,0.4699]
[1760692472186,2.72026574,3740.2,3740.1,0.4699]
[1760692473138,3.35386574,3740.2,3740.1,0.001]
[1760692473682,3.35386574,3740.2,3740.1,0.6912]
[1760692473895,3.35386574,3740.2,3740.1,0.2223]
[1760692473896,0.04661193,3740.2,3740.1,0.2223]
[1760692474095,2.72026574,3740.2,3740.1,0.6912]
[1760692474823,0.04661193,3740.2,3740.1,0.6912]
[1760692475024,2.67337473,3740.6,3740.1,0.6912]
[1760692475229,0.1336,3740.2,3740.1,0.55880735]
[1760692475632,0.1336,3740.2,3740.1,0.2223]
[1760692475954,0.1336,3740.2,3740.1,0.6912]
[1760692476122,0.1336,3740.2,3740.1,3.3649253]
[1760692476318,0.1336,3740.4,3740.1,0.2223]
[1760692476542,2.67365381,3740.2,3740.1,0.001]
[1760692476914,3.30725381,3740.2,3740.1,0.001]
[1760692477614,2.67307587,3741.1,3740.1,0.001]
[1760692477615,2.84666905,3742.3,3740.1,0.6912]
[1760692477820,2.67334662,3740.7,3740.2,0.4689]
[1760692478124,2.67316209,3740.9,3740.2,0.4689]
[1760692478444,2.67309223,3741.0,3740.4,2.67350302]
[1760692478763,2.67294442,3741.2,3740.6,2.67335456]
[1760692478917,2.67272484,3741.5,3741.1,0.2213]
[1760692478918,2.67285052,3741.4,3741.1,0.2213]
[1760692479120,2.67287363,3741.3,3741.1,0.6902]
[1760692479336,2.67287363,3741.3,3741.2,0.4689]
[1760692479652,2.67282398,3741.4,3741.2,0.4689]
[1760692479866,2.71926681,3741.6,3741.1,0.2213]
[1760692479867,0.04659889,3741.6,3741.5,2.67272484]
[1760692480072,0.002,3742.6,3742.1,2.6722963]
[1760692480223,0.002,3742.6,3742.1,2.8935963]
[1760692480424,0.002,3742.6,3742.1,3.3624963]
[1760692480725,0.002,3742.6,3742.1,3.38921926]
[1760692480949,0.002,3742.6,3742.1,3.96865674]
[1760692481166,2.67397123,3742.6,3741.5,0.31416248]
[1760692481322,0.002,3742.6,3741.5,0.4689]
[1760692481531,2.67236622,3742.1,3741.5,0.4689]
[1760692481731,0.002,3742.2,3741.1,0.2213]
[1760692481937,2.67239224,3742.0,3741.1,0.6902]
[1760692482136,2.6724038,3742.0,3741.1,0.6902]
[1760692482336,0.6336,3742.1,3741.2,2.67291872]
[1760692482557,2.67243421,3742.0,3741.2,2.67291872]
[1760692483227,0.6336,3742.1,3741.4,2.67278058]
[1760692483419,3.30589848,3742.1,3741.4,2.67278058]
[1760692483838,3.30589848,3742.1,3741.4,3.14168058]
[1760692484157,2.67249093,3741.9,3741.4,0.4689]
[1760692484362,0.6336,3742.1,3741.4,0.4689]
[1760692484724,2.67238292,3742.0,3741.4,0.4689]
[1760692484925,0.04858484,3742.2,3741.4,0.80521183]
[1760692485162,0.04858484,3742.2,3741.5,2.67272484]
[1760692485459,0.04858484,3742.2,3741.4,0.4689]
[1760692486168,2.67234715,3742.1,3741.4,0.4689]
[1760692486460,0.1336,3741.7,3741.4,0.4689]
[1760692487357,0.1336,3741.7,3741.5,0.4689]
[1760692487558,0.1336,3741.7,3741.2,2.67287685]
[1760692487764,0.1336,3741.7,3741.5,0.4689]
[1760692487961,0.1336,3741.7,3741.2,0.5922158]
[1760692488184,0.002,3742.0,3741.1,0.2213]
[1760692488185,0.1336,3741.4,3741.1,0.2213]
[1760692488491,0.1336,3741.4,3741.2,0.4689]
[1760692488865,0.1336,3741.4,3741.1,2.89430433]
[1760692489066,0.1336,3741.4,3741.2,0.4689]
[1760692489461,0.1336,3741.4,3741.1,0.2213]
[1760692489776,0.1336,3741.4,3741.2,0.4689]
[1760692489976,0.1336,3741.4,3741.1,0.2213]
[1760692490280,0.1336,3741.4,3741.1,0.6902]
[1760692490579,0.1336,3741.4,3741.1,2.8942916]
[1760692490776,0.1336,3741.4,3741.1,3.3631916]
[1760692490970,0.1336,3741.4,3741.1,0.2213]
[1760692491170,0.1336,3741.4,3741.1,2.89430159]
[1760692491353,0.1336,3741.4,3741.2,0.4533]
[1760692492390,2.67253116,3741.8,3741.2,0.4533]
[1760692492391,0.002,3742.0,3741.3,0.4533]
[1760692492696,0.002,3742.0,3741.4,0.02672796]
[1760692492847,0.002,3742.0,3741.2,0.62420541]
[1760692492848,0.002,3742.0,3741.5,0.5869]
[1760692493047,0.1336,3741.9,3741.7,2.67251722]
[1760692493287,0.1336,3741.9,3741.7,0.4533]
[1760692493486,0.1336,3741.9,3741.6,2.67260336]
[1760692493673,0.1336,3741.9,3741.7,0.4533]
[1760692493986,0.1328,3741.9,3741.4,2.67279107]
[1760692494193,0.1328,3741.9,3741.5,0.38838965]
[1760692494705,0.1328,3741.9,3741.5,0.4533]
[1760692494908,0.1328,3741.9,3741.6,0.4533]
[1760692495118,0.002,3742.0,3741.8,2.67250647]
[1760692495601,0.002,3742.0,3741.9,0.4533]
[1760692497407,0.002,3742.0,3741.9,3.12573913]
[1760692497603,0.002,3742.0,3741.9,1.03313907]
[1760692498305,0.002,3742.0,3741.9,3.7055782]
[1760692498605,0.002,3742.0,3741.9,1.03313907]
[1760692499734,0.002,3742.0,3741.9,3.7055782]
[1760692500205,0.002,3742.0,3741.9,10.4527022]
[1760692500404,0.002,3742.0,3741.9,9.1702022]
[1760692501109,0.002,3742.0,3741.9,6.6591782]
[1760692501312,0.002,3742.0,3741.9,1.16673907]
[1760692501610,2.67256956,3741.8,3741.1,2.89430804]
[1760692501815,0.1336,3741.6,3741.1,0.2213]
[1760692502020,0.002,3742.0,3741.4,2.67273265]
[1760692502021,0.1336,3741.8,3741.4,2.67273265]
[1760692502182,0.002,3742.0,3741.9,2.67243913]
[1760692502509,0.002,3742.0,3741.9,12.96655413]
[1760692502714,0.002,3742.4,3742.3,2.67215348]
[1760692502883,0.002,3742.4,3742.3,17.61644548]
[1760692503084,0.002,3742.4,3742.3,20.20644966]
[1760692503284,0.002,3742.4,3742.3,18.35669466]
[1760692503511,0.002,3742.4,3742.3,22.88456266]
[1760692503722,0.002,3742.4,3742.3,21.47966066]
[1760692504011,0.002,3742.4,3742.3,23.20766066]
[1760692504398,0.002,3742.4,3742.3,20.79045966]
[1760692504590,0.002,3742.4,3742.3,25.60471666]
[1760692505206,1e-08,3742.6,3742.5,4.40001068]
[1760692505404,1e-08,3742.6,3742.5,22.82804921]
[1760692505584,1e-08,3742.6,3742.5,14.64049721]
[1760692505912,1e-08,3742.6,3742.5,9.81489421]
[1760692506612,1e-08,3742.6,3742.5,22.10569421]
[1760692507184,1e-08,3742.6,3742.5,7.46399021]
[1760692507409,1e-08,3742.6,3742.5,4.83151068]
[1760692507593,1e-08,3742.6,3742.5,7.10112768]
[1760692507914,1e-08,3742.6,3742.3,7.64965766]
[1760692507915,0.15070001,3742.6,3742.3,2.15850418]
[1760692508212,0.1507,3742.5,3741.5,2.818]
[1760692508414,1e-08,3742.6,3741.6,0.3276228]
[1760692508614,2.67234264,3742.1,3741.4,2.67277733]
[1760692508822,1e-08,3742.6,3740.5,0.2312]
[1760692508823,0.1863,3741.5,3740.5,0.2312]
[1760692509401,0.1863,3741.5,3739.7,0.4325]
[1760692509402,0.1511,3741.4,3739.7,0.4325]
[1760692509613,0.1511,3741.4,3740.1,3.0403]
[1760692509816,2.6729911,3741.2,3740.2,2.67363443]
[1760692509989,0.1511,3741.3,3740.3,0.57139344]
[1760692510190,2.67318133,3740.9,3740.3,0.57139344]
[1760692510402,0.2317,3740.9,3740.3,0.57139344]
[1760692510727,2.90485735,3740.9,3740.3,0.57139344]
[1760692510913,2.67365381,3740.2,3740.1,0.001]
[1760692511303,2.82555381,3740.2,3740.1,0.001]
[1760692511625,3.45915381,3740.2,3740.1,0.001]
[1760692511831,5.18715381,3740.2,3740.1,0.001]
[1760692512196,1.8799,3740.2,3740.1,0.001]
[1760692512401,0.04660648,3740.3,3740.1,0.001]
[1760692512592,0.2317,3740.9,3740.1,2.67472449]
[1760692512913,0.1336,3741.2,3740.6,0.1336]
[1760692513115,0.04659956,3741.3,3740.6,0.4315]
[1760692513315,2.67242407,3742.0,3741.2,2.67293916]
[1760692513697,0.3394,3741.9,3740.2,2.22667245]
[1760692513892,0.1061,3741.8,3740.2,2.22667245]
[1760692514097,1.8341,3741.8,3741.0,2.67302573]
[1760692514337,1.8341,3741.8,3741.1,2.6730028]
[1760692514338,1.728,3741.8,3741.1,2.6730028]
[1760692514634,0.2333,3741.9,3740.6,0.4315]
[1760692514838,0.1061,3741.8,3740.6,0.4315]
[1760692514996,0.2333,3741.9,3740.6,0.4315]
[1760692515200,1.9613,3741.9,3741.2,2.67292059]
[1760692515395,2.77832716,3742.2,3741.1,0.2312]
[1760692515396,0.1061,3742.2,3741.1,0.2312]
[1760692515644,0.2321,3741.8,3740.7,2.67324665]
[1760692515935,0.1073,3741.7,3740.3,0.93596725]
[1760692516136,2.67279937,3741.4,3740.6,2.67331376]
[1760692516340,2.67279937,3741.4,3739.9,2.67385251]
[1760692516341,0.1073,3741.3,3739.8,0.4325]
[1760692516522,0.2297,3740.7,3740.0,2.67376049]
[1760692516723,0.2297,3740.7,3740.1,0.001]
[1760692516901,0.6336,3741.6,3740.2,0.2312]
[1760692517228,0.6336,3741.3,3740.1,0.001]
[1760692517432,2.67350698,3740.5,3740.1,0.001]
[1760692517619,2.67258811,3740.6,3740.1,0.001]
[1760692517819,0.2333,3740.2,3740.1,0.001]
[1760692518005,0.6336,3741.2,3740.1,0.001]
[1760692518206,2.67335187,3740.7,3740.1,0.001]
[1760692518606,2.67344282,3740.5,3740.1,0.001]
[1760692518811,0.2321,3740.8,3740.1,0.001]
[1760692519012,2.67338975,3740.6,3740.1,0.001]
[1760692519222,2.67338399,3740.6,3740.1,0.001]
[1760692519713,2.77958399,3740.6,3740.1,0.001]
[1760692520447,2.67344388,3740.5,3740.1,0.001]
[1760692520611,0.1062,3740.5,3740.1,0.001]
[1760692520812,0.2321,3740.8,3740.1,2.67467302]
[1760692521021,0.27870256,3740.8,3740.1,0.001]
[1760692521206,2.67331154,3740.7,3740.1,0.001]
[1760692521403,0.27870256,3740.8,3740.2,2.67363257]
[1760692521746,0.04660256,3740.8,3740.1,0.58122669]
[1760692522105,0.04660256,3740.8,3740.1,2.88942327]
[1760692522311,0.04660256,3740.8,3740.5,2.67341008]
[1760692522616,0.6336,3741.9,3740.1,0.2157]
[1760692522617,0.2321,3741.8,3740.2,3.10255381]
[1760692522817,2.71930155,3741.6,3740.8,2.67315925]
[1760692523024,0.1336,3741.4,3740.8,0.47703999]
[1760692523334,0.1336,3741.4,3740.7,0.5625]
[1760692523516,0.1336,3741.4,3741.1,2.67297258]
[1760692523717,0.1336,3741.4,3740.7,0.5625]
[1760692524056,0.1336,3740.7,3740.1,0.001]
[1760692524387,0.1336,3740.5,3740.4,2.67351085]
[1760692524531,4.63262175,3741.8,3740.4,2.67351085]
[1760692524532,0.1336,3740.8,3740.4,0.28892109]
[1760692524732,0.1336,3740.6,3740.1,0.001]
[1760692524988,0.1166,3740.7,3740.1,0.001]
[1760692525136,0.1336,3740.2,3740.1,0.001]
[1760692525632,2.67323224,3740.8,3740.1,3.15700758]
[1760692525836,0.1336,3740.6,3740.1,0.91218228]
[1760692526066,0.1336,3740.6,3740.1,0.6446]
[1760692526238,0.1336,3740.6,3740.2,2.67360205]
[1760692526432,0.1336,3740.6,3740.1,0.001]
[1760692526632,2.67352468,3740.4,3740.1,0.001]
[1760692526971,0.1176,3740.5,3740.1,0.001]
[1760692527272,0.2195,3740.9,3740.1,0.28194624]
[1760692527433,2.67329644,3740.7,3740.1,0.001]
[1760692527636,2.67356638,3740.4,3740.1,0.001]
[1760692528091,2.67365381,3740.2,3740.1,0.001]
[1760692528488,0.1186,3740.3,3740.1,0.001]
[1760692528489,2.6736043,3740.3,3740.1,0.001]
[1760692528960,2.67365381,3740.2,3740.1,0.001]
[1760692530859,0.16520368,3740.6,3740.1,0.001]
[1760692530860,2.67345592,3740.5,3740.1,0.001]
[1760692531360,2.67351607,3740.4,3740.1,0.001]
[1760692531560,2.67358363,3740.3,3740.1,0.001]
[1760692532255,2.67353674,3740.4,3740.1,0.001]
[1760692532862,0.04660368,3740.6,3740.1,0.001]
[1760692533056,0.04660368,3740.6,3740.2,0.6436]
[1760692533295,0.1186,3741.4,3740.3,0.45563582]
[1760692533495,0.04659805,3741.1,3740.8,2.67320456]
[1760692533661,0.04659805,3741.1,3741.0,2.67308206]
[1760692533862,2.67266601,3741.6,3740.9,3.36934756]
[1760692534067,2.67266601,3741.6,3741.0,2.67307266]
[1760692534399,2.67260139,3741.7,3741.0,2.67306068]
[1760692534767,2.6726615,3741.6,3741.0,2.67306068]
[1760692534969,0.2321,3741.8,3741.1,0.33692811]
[1760692535164,0.071,3755.1,3741.1,0.33692811]
[1760692535165,1.728,3742.2,3741.2,0.02672939]
[1760692535366,0.13,3742.5,3741.2,0.45562939]
[1760692535570,0.2333,3742.9,3741.2,0.45562939]
[1760692535571,0.3633,3742.9,3741.2,0.4289]
[1760692535791,2.67200819,3742.6,3741.8,2.67244255]
[1760692536100,2.67200819,3742.6,3741.9,2.6724167]
[1760692536408,1e-08,3742.6,3742.2,2.67216385]
[1760692536595,1e-08,3742.6,3742.3,0.6436]
[1760692536810,1e-08,3742.6,3742.5,2.67201068]
[1760692537479,1e-08,3742.6,3742.3,0.3483]
[1760692537681,1e-08,3742.6,3742.4,2.67205489]
[1760692537880,1e-08,3742.6,3742.4,3.24131984]
[1760692538202,1e-08,3742.6,3742.4,0.56926495]
[1760692538505,1e-08,3742.6,3742.4,2.67207897]
[1760692539405,1e-08,3742.6,3742.3,3.02043672]
[1760692539704,1e-08,3742.6,3731.8,0.41909904]
[1760692539705,2.80580203,3742.3,3741.5,0.1336]
[1760692539891,2.67236769,3742.1,3741.5,0.1336]
[1760692540095,0.1336,3742.2,3741.5,0.1336]
[1760692540410,2.80607515,3741.9,3741.3,0.1336]
[1760692540608,0.1336,3741.9,3741.3,0.44993]
[1760692540806,0.1336,3741.9,3741.5,2.67271681]
[1760692541174,0.1328,3741.9,3741.4,2.67277684]
[1760692541374,0.1328,3741.9,3741.3,0.44993]
[1760692541676,0.3544,3741.9,3741.3,0.44993]
[1760692541865,0.2216,3741.9,3740.5,2.1569]
[1760692542066,0.1336,3741.5,3740.9,0.1336]
[1760692542605,0.002,3742.8,3741.4,2.88749627]
[1760692542779,0.002,3742.8,3742.5,2.67201068]
[1760692543434,0.002,3742.8,3742.0,2.814]
[1760692543731,0.002,3742.8,3742.3,2.67214551]